{"text_format":"3","workbook":"xlsx","n_sheets":4,"sheets":["Lista de Compras","Discriminação do Orçamento","Lista de Tarefas","Lista de Partilhas"],"not_rendered":{"charts":2,"images":2,"defined_names":12},"read":"whole","date_system":"1900"}

{"sheet":"Lista de Compras","index":0,"n_rows":25,"n_cols":8,"rows_kept":25,"merged":[[2,1,2,7],[3,1,3,2],[4,4,6,7]]}
[null,"Regresso às Aulas","Planeador"]
[]
[null,"Compare o seu progresso de compras com os valores das categorias do orçamento introduzidos na Discriminação do Orçamento."]
[null,"Resumo do Orçamento",null,null,{"$f":"\"Evolução das Compras (\"&COUNTIFS(Lista_de_verificação[Comprado], \">0\")&\" de \"&COUNTIFS(Lista_de_verificação[Para Comprar], \">0\")&\")\"","v":"Evolução das Compras (1 de 6)"}]
[null,"Orçamento",{"v":1500,"d":"1,500.00 €"},null,{"$f":"IFERROR(COUNTIFS(Lista_de_verificação[Para Comprar],\">0\",Lista_de_verificação[Comprado],\">0\")/SomaItensParaComprar,0)","v":{"v":0.16666666666666666,"d":"17%"}}]
[null,"Total da Lista de Compras",{"$f":"IFERROR(SUM(TotalListaVerificação), \"\")","v":{"v":365,"d":"365.00 €"}}]
[null,"Dinheiro Restante",{"$f":"IFERROR(C5-C6, \"\")","v":{"v":1135,"d":"1,135.00 €"}}]
[null,"Lista de Compras"]
[null,"Item","Categoria","Qtd","Para Comprar","Custo","Comprado","Custo Total"]
[null,"Matemática","Manuais",1,1,{"v":55,"d":"55.00 €"},1,{"$f":"IFERROR(Lista_de_verificação[Qtd]*Lista_de_verificação[Custo], \"\")","v":{"v":55,"d":"55.00 €"}}]
[null,"Inglês","Manuais",1,1,null,null,{"$f":"IFERROR(Lista_de_verificação[Qtd]*Lista_de_verificação[Custo], \"\")","v":0}]
[null,"Mochila","Materiais",1,null,{"v":30,"d":"30.00 €"},null,{"$f":"IFERROR(Lista_de_verificação[Qtd]*Lista_de_verificação[Custo], \"\")","v":{"v":30,"d":"30.00 €"}}]
[null,"Calculadora","Materiais",1,{"$nulls":3},{"$f":"IFERROR(Lista_de_verificação[Qtd]*Lista_de_verificação[Custo], \"\")","v":0}]
[null,"Marcadores","Materiais",3,{"$nulls":3},{"$f":"IFERROR(Lista_de_verificação[Qtd]*Lista_de_verificação[Custo], \"\")","v":0}]
[null,"Uniforme","Roupa",2,1,{"v":100,"d":"100.00 €"},null,{"$f":"IFERROR(Lista_de_verificação[Qtd]*Lista_de_verificação[Custo], \"\")","v":{"v":200,"d":"200.00 €"}}]
[null,"Camisa","Roupa",4,{"$nulls":3},{"$f":"IFERROR(Lista_de_verificação[Qtd]*Lista_de_verificação[Custo], \"\")","v":0}]
[null,"T-shirts","Roupa",5,{"$nulls":3},{"$f":"IFERROR(Lista_de_verificação[Qtd]*Lista_de_verificação[Custo], \"\")","v":0}]
[null,"Calções","Roupa",2,{"$nulls":3},{"$f":"IFERROR(Lista_de_verificação[Qtd]*Lista_de_verificação[Custo], \"\")","v":0}]
[null,"Ténis","Roupa",2,1,null,null,{"$f":"IFERROR(Lista_de_verificação[Qtd]*Lista_de_verificação[Custo], \"\")","v":0}]
[null,"Meias","Roupa",10,{"$nulls":3},{"$f":"IFERROR(Lista_de_verificação[Qtd]*Lista_de_verificação[Custo], \"\")","v":0}]
[null,"Casaco de primavera","Roupa",1,1,{"v":80,"d":"80.00 €"},null,{"$f":"IFERROR(Lista_de_verificação[Qtd]*Lista_de_verificação[Custo], \"\")","v":{"v":80,"d":"80.00 €"}}]
[null,"Camisolas","Roupa",1,{"$nulls":3},{"$f":"IFERROR(Lista_de_verificação[Qtd]*Lista_de_verificação[Custo], \"\")","v":0}]
[null,"Camisolas com capuz","Roupa",1,{"$nulls":3},{"$f":"IFERROR(Lista_de_verificação[Qtd]*Lista_de_verificação[Custo], \"\")","v":0}]
[null,"Roupa interior","Roupa",10,{"$nulls":3},{"$f":"IFERROR(Lista_de_verificação[Qtd]*Lista_de_verificação[Custo], \"\")","v":0}]
[null,"Casaco de inverno","Roupa",1,1,null,null,{"$f":"IFERROR(Lista_de_verificação[Qtd]*Lista_de_verificação[Custo], \"\")","v":0}]

{"sheet":"Discriminação do Orçamento","index":1,"n_rows":6,"n_cols":3,"rows_kept":6}
[null,"Discriminação do Orçamento"]
[null,"Adicione categorias e valores de orçamento para comparar à sua Lista de Compras."]
[null,"Categoria","Custo Total"]
[null,"Roupa",{"$f":"IFERROR(SUMIFS(Lista_de_verificação[Custo Total],Lista_de_verificação[Categoria],Categoria[Categoria]), \"\")","v":{"v":280,"d":"280.00 €"}}]
[null,"Materiais",{"$f":"IFERROR(SUMIFS(Lista_de_verificação[Custo Total],Lista_de_verificação[Categoria],Categoria[Categoria]), \"\")","v":{"v":30,"d":"30.00 €"}}]
[null,"Manuais",{"$f":"IFERROR(SUMIFS(Lista_de_verificação[Custo Total],Lista_de_verificação[Categoria],Categoria[Categoria]), \"\")","v":{"v":55,"d":"55.00 €"}}]

{"sheet":"Lista de Tarefas","index":2,"n_rows":22,"n_cols":3,"rows_kept":22}
[null,"Lista de Tarefas"]
[null,"Registe todas as atividades que tem de concluir antes de as aulas começarem."]
[null,"Concluída","Tarefa"]
[null,"x","Completar Todos os Formulários de Registo"]
[null,null,"Agendar Exame Físico e Visual na Escola se Necessário"]
[null,null,"Verificar Todas as Vacinas Necessárias"]
[null,null,"Obter Notas do Médico Com as Instruções de Dosagem Para Toda a Medicação Necessária"]
[null,null,"Rever o Código de Indumentária da Escola"]
[null,null,"Obter Uma Lista de Materiais Escolares"]
[null,null,"Conhecer o Professor"]
[null,null,"Determinar o Método de Comunicação Preferencial do Professor (Telemóvel, E-mail, Nota Escrita)"]
[null,null,"Fazer Uma Visita à Escola Com o Seu Filho"]
[null,null,"Ajudar o Seu Filho a Memorizar o Número de Telefone de Casa, do Trabalho e a Morada de Casa"]
[null,null,"Tratar do Transporte, Escolher Um Local de Encontro Seguro e Praticar a Rotina"]
[null,null,"Se For a Pé, Praticar Algumas Vezes o Percurso de Ida e Volta Para a Escola Com o Seu Filho"]
[null,null,"Se Partilhar o Carro, Apresentar o Seu Filho a Todos os Condutores"]
[null,null,"Se For de Autocarro, Definir os Horários e as Paragens de Autocarro"]
[null,null,"Tratar de Infantário/Atividades Extracurriculares"]
[null,null,"Planear Um Menu Para Pequenos-almoços, Lanches Escolares, Almoços Trazidos de Casa e Lanches Para Depois da Escola"]
[null,null,"Determinar a Localização e o Horário Para os Trabalhos de Casa"]
[null,null,"Estabelecer Uma Rotina Para a Hora de Dormir Pelo Menos Duas Semanas Antes de a Escola Começar"]
[null,null,"Preparar Um Calendário Com Todos os Eventos e Atividades Escolares"]

{"sheet":"Lista de Partilhas","index":3,"n_rows":4,"n_cols":5,"rows_kept":4}
[null,"Lista de Partilhas",null,null,"Partilhe esta lista com outras pessoas para que possam contribuir. Selecione Partilhar no canto superior direito ou prima Alt e, em seguida, YU. Guarde o ficheiro no OneDrive e envie a ligação para os seus amigos."]
[null,"Nome","E-mail","Partilhado?"]
[null,"Pessoa 1","alguém@e-mail.com","Sim"]
[null,"Pessoa 2","alguém@e-mail.com","Não"]